bitfinex-derivatives/quotes_SOLF0:USTF0_20241027
["timestamp","ask_amount","ask_price","bid_price","bid_amount"]
[1730062372758,2.8259,177.14,177.12,6.95208066]
[1730062376261,2.8259,177.14,177.09,2.8266]
[1730062376565,6.95208066,177.14,177.09,2.8266]
[1730062376853,6.95208066,177.12,177.06,2.827]
[1730062377060,6.95208066,177.11,177.06,9.77908066]
[1730062377454,2.8267,177.09,177.06,2.827]
[1730062377654,6.95208066,177.11,177.06,2.827]
[1730062378661,2.8267,177.09,177.06,2.827]
[1730062378853,6.95208066,177.11,177.05,9.77918066]
[1730062379952,2.8266,177.1,177.06,2.8271]
[1730062380145,6.95208066,177.11,177.06,2.8271]
[1730062381059,2.8269,177.07,177.05,9.77928066]
[1730062381363,2.8269,177.07,177.04,9.34178066]
[1730062381858,2.8269,177.07,177.05,2.8272]
[1730062382055,6.95208066,177.08,177.04,1.227]
[1730062382762,2.8272,177.06,177.04,1.227]
[1730062382958,2.8272,177.06,177.03,9.77958066]
[1730062383261,2.8274,177.04,177.01,9.77988066]
[1730062385656,2.8274,177.04,177.01,2.8278]
[1730062385960,2.8274,177.04,177.01,9.77988066]
[1730062386759,2.8274,177.04,177.01,6.95208066]
[1730062386964,2.8274,177.04,177.02,2.8277]
[1730062396970,2.8277,177.02,177.0,4.0689]
[1730062397164,4.04,177.09,177.0,1.241]
[1730062397370,6.95208066,177.04,176.99,8.18298066]
[1730062397966,6.95208066,177.04,176.99,11.01108066]
[1730062398579,2.8278,177.02,176.99,11.01108066]
[1730062407386,2.8279,177.01,176.99,11.01108066]
[1730062408981,4.04,177.08,176.99,8.18298066]
[1730062409179,2.8277,177.03,177.01,6.95208066]
[1730062416695,2.8277,177.02,177.0,2.828]
[1730062418492,6.95208066,177.01,176.96,1.1642]
[1730062418792,19.83850813,177.11,176.96,1.1642]
[1730062418793,6.95208066,177.0,176.96,1.1642]
[1730062420389,2.8285,176.98,176.96,1.1642]
[1730062420893,2.8285,176.98,176.96,8.11628066]
[1730062425500,2.8285,176.98,176.96,10.94498066]
[1730062429297,2.8276,177.03,176.97,6.95208066]
[1730062429496,2.8276,177.03,177.0,6.95208066]
[1730062430904,2.8276,177.03,177.0,9.78008066]
[1730062431096,2.8276,177.03,177.0,2.828]
[1730062431804,2.8277,177.02,177.0,2.828]
[1730062450720,4.04,177.05,176.96,3.9928]
[1730062450721,2.8283,176.99,176.96,3.9928]
[1730062450922,6.95208066,177.0,176.96,3.9928]
[1730062451528,2.8284,176.99,176.96,3.9928]
[1730062451719,2.8284,176.99,176.96,1.1642]
[1730062451926,2.8284,176.99,176.97,2.8285]
[1730062452120,5.1985,177.05,176.98,6.95208066]
[1730062452121,4.04,177.05,176.98,6.95208066]
[1730062452423,4.04,177.05,177.0,6.95208066]
[1730062453123,6.8674,177.05,177.02,2.8276]
[1730062453430,4.04,177.05,177.02,2.8276]
[1730062453623,2.8275,177.04,177.02,2.8276]
[1730062453925,2.8275,177.04,177.0,6.95208066]
[1730062453926,2.8275,177.04,177.01,2.8278]
[1730062455626,6.95208066,177.06,177.01,2.8278]
[1730062455627,1.1585,177.1,177.01,6.95208066]
[1730062455826,2.827,177.07,177.04,2.8273]
[1730062456122,6.95208066,177.11,177.05,6.95208066]
[1730062456327,10.99208066,177.11,177.05,6.95208066]
[1730062457123,2.8269,177.07,177.05,2.8271]
[1730062457526,2.8268,177.08,177.06,2.8271]
[1730062457731,2.8268,177.08,177.03,8.10458066]
[1730062458628,2.8268,177.08,177.05,2.8271]
[1730062462338,6.95208066,177.08,177.05,2.8271]
[1730062462530,2.8269,177.07,177.05,2.8271]
[1730062463632,6.95208066,177.08,177.03,1.1525]
[1730062463836,6.95208066,177.07,177.02,1.2372]
[1730062464836,2.8272,177.06,177.02,1.2372]
[1730062465039,6.95208066,177.07,177.02,1.2372]
[1730062465746,2.8275,177.04,177.02,1.2372]
[1730062467541,9.77938066,177.05,177.02,4.0649]
[1730062470551,2.8273,177.05,177.02,4.0649]
[1730062470847,6.867,177.07,177.04,2.8273]
[1730062475553,2.8271,177.06,177.04,2.8273]
[1730062479254,7.7753,177.14,177.05,6.95208066]
[1730062479460,2.8269,177.08,177.05,9.77928066]
[1730062479652,6.95208066,177.11,177.05,6.95208066]
[1730062479857,2.8267,177.09,177.06,2.827]
[1730062480954,2.8262,177.12,177.09,2.8266]
[1730062481158,4.04,177.14,177.09,2.8266]
[1730062481364,10.99208066,177.14,177.09,2.8266]
[1730062481657,2.8262,177.12,177.1,2.8264]
[1730062482356,2.8262,177.12,177.09,2.8266]
[1730062482954,10.99208066,177.14,177.09,2.8266]
[1730062483256,2.8263,177.11,177.09,2.8266]
[1730062497073,2.826,177.13,177.1,2.8263]
[1730062497282,2.826,177.13,177.11,6.95208066]
[1730062497579,2.8259,177.14,177.12,2.8261]
[1730062498373,2.8259,177.14,177.09,6.95208066]
[1730062498683,2.8259,177.14,177.11,2.8262]
[1730062499077,9.77818066,177.13,177.1,2.8264]
[1730062500376,2.8263,177.11,177.09,2.8266]
[1730062502174,2.826,177.13,177.09,6.95208066]
[1730062503284,2.826,177.13,177.1,2.8263]
[1730062510188,6.95208066,177.14,177.09,6.95208066]
[1730062510492,2.8262,177.12,177.09,2.8265]
[1730062510787,6.95208066,177.14,177.09,2.8265]
[1730062511787,2.8263,177.12,177.09,2.8265]
[1730062516994,2.8263,177.12,177.09,9.77858066]
[1730062526704,2.8263,177.12,177.09,2.8265]
[1730062528913,6.95208066,177.13,177.08,1.149]
[1730062529204,6.95208066,177.1,177.05,2.8272]
[1730062529414,6.95208066,177.08,177.05,2.8272]
[1730062529795,6.95208066,177.08,177.02,10.97208066]
[1730062530105,2.8272,177.06,177.03,4.1016]
[1730062530903,6.95208066,177.07,177.03,1.2741]
[1730062531106,6.95208066,177.05,177.0,6.8479]
[1730062531307,6.95208066,177.05,177.01,1.41425897]
[1730062531495,6.95208066,177.03,176.98,1.1949]
[1730062531700,2.82442658,177.12,176.98,1.1949]
[1730062531701,4.02,177.05,176.99,1.41434822]
[1730062531900,6.95208066,177.05,176.99,6.95208066]
[1730062533319,2.8276,177.03,177.0,2.828]
[1730062535614,2.8274,177.05,177.02,2.8276]
[1730062535911,2.8274,177.05,177.02,6.95208066]
[1730062537104,4.02,177.08,177.03,6.95208066]
[1730062538306,2.827,177.07,177.03,6.95208066]
[1730062539007,2.827,177.07,177.04,2.8273]
[1730062557333,2.827,177.07,177.05,2.8272]
[1730062563239,6.95208066,177.06,176.98,1.1949]
[1730062563543,4.02,177.08,176.98,1.1949]
[1730062563544,6.95208066,177.04,176.99,5.43431427]
[1730062563744,2.8279,177.01,176.99,2.8281]
[1730062580749,2.8281,177.0,176.97,4.0662]
[1730062580954,6.95208066,176.99,176.97,2.8284]
[1730062581442,6.95208066,176.99,176.95,2.8287]
[1730062582151,2.8285,176.98,176.95,2.8287]
[1730062582548,2.8285,176.98,176.96,2.8286]
[1730062583450,6.95208066,177.02,176.95,6.95208066]
[1730062583959,2.828,177.0,176.97,2.8285]
[1730062584347,2.828,177.0,176.95,6.95208066]
[1730062584747,2.828,177.0,176.98,2.8283]
[1730062589462,2.828,177.0,176.95,6.95208066]
[1730062589666,2.828,177.0,176.97,2.8284]
[1730062592660,6.95208066,176.99,176.94,4.02]
[1730062592961,6.95208066,176.98,176.94,4.02]
[1730062593366,9.78058066,176.98,176.95,2.8287]
[1730062593568,6.95208066,176.98,176.95,2.8287]
[1730062594362,2.8287,176.96,176.94,2.8289]
[1730062595562,6.95208066,176.98,176.94,2.8289]
[1730062595758,2.8286,176.97,176.94,2.8289]
[1730062596065,2.8286,176.97,176.95,1.41474701]
[1730062596364,2.8286,176.97,176.94,2.8289]
[1730062596559,2.8286,176.97,176.95,1.41474701]
[1730062596759,2.8286,176.97,176.94,2.8289]
[1730062596960,2.8286,176.97,176.95,1.41477147]
[1730062597265,2.8286,176.97,176.94,2.8289]
[1730062597667,2.8286,176.97,176.95,1.41477174]
[1730062597872,2.8286,176.97,176.95,2.8288]
[1730062605461,6.95208066,176.98,176.93,2.3781]
[1730062605668,6.95208066,176.96,176.94,1.41474705]
[1730062605961,6.95208066,176.96,176.93,5.2072]
[1730062606366,9.78078066,176.96,176.93,5.2072]
[1730062606555,9.78078066,176.96,176.94,2.829]
[1730062612869,6.95208066,176.98,176.93,2.3781]
[1730062613068,9.78058066,176.98,176.96,2.8287]
[1730062613468,6.95208066,176.98,176.93,2.3781]
[1730062613668,6.95208066,176.98,176.94,1.41473453]
[1730062613973,6.95208066,176.98,176.93,2.3781]
[1730062614167,6.95208066,176.98,176.94,1.41473453]
[1730062614371,6.95208066,176.98,176.96,2.8286]
[1730062619078,9.78048066,176.98,176.96,2.8286]
[1730062620481,6.95208066,176.97,176.93,1.1933]
[1730062620778,9.78088066,176.95,176.94,1.41479608]
[1730062620972,6.95208066,176.95,176.94,1.41479608]
[1730062621178,6.95208066,176.95,176.93,2.8291]
[1730062621372,6.95208066,176.95,176.94,1.41481528]
[1730062621778,6.95208066,176.95,176.94,1.4148337]
[1730062622880,6.95208066,176.95,176.94,1.4148265]
[1730062624882,6.95208066,176.95,176.93,2.8291]
[1730062625082,6.95208066,176.95,176.94,1.41482756]
[1730062628787,6.95208066,176.95,176.94,1.41484221]
[1730062629086,6.95208066,176.95,176.94,4.24384221]
[1730062632590,6.95208066,176.95,176.94,2.829]
[1730062632791,6.95208066,176.95,176.94,4.24383726]
[1730062633794,6.95208066,176.95,176.94,1.41483726]
[1730062636085,6.95208066,176.95,176.93,2.8291]
[1730062636389,6.95208066,176.95,176.94,1.41489252]
[1730062639696,6.95208066,176.95,176.93,2.8291]
[1730062639889,6.95208066,176.95,176.94,1.41488638]
[1730062643289,9.78088066,176.95,176.94,1.41488638]
[1730062645388,2.8293,176.93,176.9,2.8296]
[1730062645690,6.95208066,176.91,176.9,2.8296]
[1730062645885,6.95208066,176.91,176.9,9.12670814]
[1730062646288,6.95208066,176.91,176.9,6.29710814]
[1730062646791,6.95208066,176.91,176.9,1.41505706]
[1730062647197,6.95208066,176.91,176.9,6.29717441]
[1730062649603,9.78158066,176.91,176.9,1.41505706]
[1730062652800,6.95208066,176.91,176.9,1.41505706]
[1730062653103,6.95208066,176.92,176.91,2.8294]
[1730062653297,6.95208066,176.92,176.91,4.24445706]
[1730062654806,6.95208066,176.92,176.91,2.8294]
[1730062656910,6.95208066,176.92,176.91,4.24452166]
[1730062657303,6.95208066,176.92,176.91,2.8294]
[1730062659207,6.95208066,176.92,176.91,4.24451823]
[1730062659408,6.95208066,176.92,176.91,2.8294]
[1730062659608,6.95208066,176.92,176.91,4.24451209]
[1730062660610,6.95208066,176.92,176.91,2.8294]
[1730062661304,6.95208066,176.92,176.91,4.24451823]
[1730062661610,6.95208066,176.95,176.91,6.2942559]
[1730062661804,6.95208066,176.95,176.92,1.41511823]
[1730062662003,9.78098066,176.95,176.92,2.8293]
[1730062662508,9.78098066,176.95,176.93,1.41492539]
[1730062662711,9.78098066,176.95,176.93,2.8291]
[1730062667523,6.95208066,176.95,176.94,2.829]
[1730062668025,271.40190275,177.03,176.94,13.2458328]
[1730062668329,6.95208066,177.01,176.98,2.8282]
[1730062669629,6.95208066,176.99,176.98,2.8282]
[1730062678732,6.95208066,176.99,176.97,2.8284]
[1730062684245,2.8281,177.0,176.97,2.8284]
[1730062684736,2.8281,177.0,176.98,2.8283]
[1730062685339,6.95208066,177.01,177.0,2.828]
[1730062686242,6.95208066,177.01,176.96,6.95208066]
[1730062686440,6.95208066,177.01,176.99,2.8281]
[1730062689738,6.95208066,177.01,176.98,2.8283]
[1730062689739,6.95208066,177.0,176.98,2.8283]
[1730062690445,6.95208066,177.0,176.93,10.97208066]
[1730062690750,9.78028066,177.0,176.97,2.8284]
[1730062697754,9.78028066,177.0,176.98,2.8284]
[1730062702255,2.8282,177.0,176.98,2.8284]
[1730062707047,6.95208066,176.99,176.93,4.02]
[1730062707243,6.95208066,176.99,176.94,1.4146121]
[1730062707448,6.95208066,176.99,176.95,1.4146121]
[1730062707644,6.95208066,176.99,176.93,10.97208066]
[1730062707853,6.95208066,176.99,176.97,2.8284]
[1730062708258,6.95208066,176.99,176.95,2.8288]
[1730062708460,6.95208066,176.99,176.93,4.02]
[1730062708659,2.8286,176.97,176.94,1.41459877]
[1730062708852,6.95208066,176.96,176.92,4.86742733]
[1730062709162,6.95208066,176.96,176.93,1.41471643]
[1730062709359,6.95208066,176.96,176.94,2.8289]
[1730062710263,6.95208066,176.96,176.91,5.2374]
[1730062710456,6.95208066,176.96,176.92,1.41476571]
[1730062710757,6.95208066,176.96,176.93,1.41476571]
[1730062710958,6.95208066,176.96,176.94,2.8289]
[1730062711157,9.78088066,176.96,176.94,2.8289]
[1730062712354,6.95208066,176.95,176.91,4.0]
[1730062712660,4.0,176.99,176.89,8.18868066]
[1730062712661,6.95208066,176.93,176.89,6.95208066]
[1730062712858,6.95208066,176.93,176.91,2.8293]
[1730062713066,6.95208066,176.93,176.89,6.95208066]
[1730062713560,6.95208066,176.93,176.9,1.41490548]
[1730062713763,6.95208066,176.93,176.91,1.41490548]
[1730062713954,6.95208066,176.93,176.89,6.95208066]
[1730062714259,6.95208066,176.94,176.92,2.8293]
[1730062715558,9.78108066,176.94,176.92,2.8293]
[1730062718055,9.78108066,176.94,176.88,4.02]
[1730062718056,6.95208066,176.94,176.88,4.02]
[1730062718256,9.78138066,176.93,176.9,2.8295]
[1730062718463,9.78138066,176.93,176.91,1.41496074]
[1730062718663,9.78138066,176.93,176.9,2.8295]
[1730062718860,9.78138066,176.93,176.91,1.41497329]
[1730062719058,9.78138066,176.93,176.91,2.8295]
[1730062722159,9.78138066,176.93,176.9,2.8296]
[1730062723066,9.78138066,176.93,176.87,6.95208066]
[1730062723268,9.78138066,176.93,176.91,2.8295]
[1730062726160,6.95208066,176.92,176.75,9.684]
[1730062726363,6.95208066,176.88,176.83,6.95208066]
[1730062726662,6.95208066,176.88,176.84,6.2890957]
[1730062726860,4.02,176.9,176.86,6.95208066]
[1730062727060,10.97208066,176.92,176.87,1.41543226]
[1730062727265,10.97208066,176.92,176.86,6.95208066]
[1730062727464,2.8297,176.9,176.87,1.41526809]
[1730062727666,4.02,176.92,176.86,6.95208066]
[1730062727967,10.97208066,176.92,176.87,1.41524531]
[1730062728163,10.97208066,176.92,176.86,6.95208066]
[1730062728363,10.97208066,176.92,176.87,1.41524158]
[1730062728564,2.8295,176.91,176.86,9.78228066]
[1730062728769,2.8295,176.91,176.87,1.41524772]
[1730062729069,2.8295,176.91,176.86,9.78228066]
[1730062729266,2.8295,176.91,176.87,1.415254]
[1730062729469,9.78158066,176.91,176.86,9.78228066]
[1730062729665,2.8297,176.9,176.87,1.41525567]
[1730062729970,2.8297,176.9,176.86,2.8302]
[1730062730170,2.8297,176.9,176.87,1.41524338]
[1730062730368,2.8297,176.9,176.86,2.8302]
[1730062730567,2.8297,176.9,176.87,1.41524219]
[1730062730768,2.8297,176.9,176.86,2.8302]
[1730062730969,2.8297,176.9,176.87,1.41525447]
[1730062731171,2.8297,176.9,176.86,2.8302]
[1730062731368,2.8297,176.9,176.87,1.41525447]
[1730062731567,2.8297,176.9,176.86,2.8302]
[1730062731771,2.8297,176.9,176.87,1.41524833]
[1730062732078,2.8297,176.9,176.86,2.8302]
[1730062732376,2.8297,176.9,176.87,1.41524833]
[1730062732559,2.8297,176.9,176.86,2.8302]
[1730062732758,2.8298,176.89,176.87,1.4152423]
[1730062732964,2.8298,176.89,176.86,2.8302]
[1730062733171,2.8298,176.89,176.87,1.41524111]
[1730062733361,2.8298,176.89,176.86,2.8302]
[1730062736072,2.8298,176.89,176.85,9.78248066]
[1730062736274,2.8298,176.89,176.86,1.41526073]
[1730062736466,2.8298,176.89,176.85,9.78248066]
[1730062736770,2.8298,176.89,176.86,1.41527302]
[1730062736972,2.8298,176.89,176.85,9.78248066]
[1730062737170,2.8298,176.89,176.86,1.41527422]
[1730062737471,2.8298,176.89,176.85,9.78248066]
[1730062737876,2.8298,176.89,176.86,1.41526073]
[1730062738071,2.8298,176.89,176.85,9.78248066]
[1730062739871,2.83,176.88,176.85,9.78248066]
[1730062740668,2.8303,176.86,176.84,4.86500857]
[1730062740972,6.95208066,176.88,176.81,10.95208066]
[1730062741168,6.95208066,176.88,176.82,6.28044738]
[1730062741371,6.95208066,176.88,176.81,10.95208066]
[1730062741372,6.95208066,176.88,176.83,1.41536516]
[1730062741573,6.95208066,176.88,176.84,1.41536516]
[1730062741866,6.95208066,176.88,176.81,10.95208066]
[1730062742069,6.95208066,176.88,176.82,4.8644062]
[1730062742271,2.8304,176.86,176.83,4.24616418]
[1730062742467,2.8304,176.86,176.83,2.8308]
[1730062744074,2.8306,176.85,176.82,7.69469996]
[1730062744275,2.8306,176.85,176.82,2.8309]
[1730062745375,6.95208066,176.86,176.81,4.86320044]
[1730062745579,6.95208066,176.85,176.82,1.4154382]
[1730062745873,6.95208066,176.85,176.78,6.95208066]
[1730062746079,6.95208066,176.85,176.79,9.10911294]
[1730062746375,6.95208066,176.85,176.8,1.41559806]
[1730062746575,2.831,176.82,176.79,2.8313]
[1730062746783,2.831,176.82,176.8,1.41559583]
[1730062746976,2.831,176.82,176.79,2.8313]
[1730062747169,2.831,176.82,176.8,1.41561782]
[1730062747373,2.831,176.82,176.79,2.8313]
[1730062748872,6.95208066,176.85,176.78,6.95208066]
[1730062749070,2.8309,176.83,176.8,2.8311]
[1730062749271,6.95208066,176.87,176.81,6.95208066]
[1730062749476,6.95208066,176.88,176.82,6.95208066]
[1730062749676,2.8303,176.86,176.82,6.95208066]
[1730062750374,2.8303,176.86,176.83,2.8306]
[1730062752678,2.8303,176.86,176.84,2.8306]
[1730062752872,251.53831424,176.93,176.82,6.95208066]
[1730062753075,6.95208066,176.91,176.84,6.95208066]
[1730062753979,2.8298,176.89,176.86,2.8302]
[1730062756782,2.8298,176.89,176.87,2.8301]
[1730062761586,9.78188066,176.89,176.87,2.8301]
[1730062764192,2.8298,176.89,176.87,2.8301]
[1730062765596,2.8298,176.89,176.86,2.8302]
[1730062770696,2.83,176.88,176.86,2.8302]
[1730062774093,6.95208066,176.87,176.82,8.11208066]
[1730062774402,2.8305,176.85,176.83,4.24607961]
[1730062774599,2.8305,176.85,176.84,1.41537961]
[1730062774997,2.8305,176.85,176.83,2.8307]
[1730062775397,2.8305,176.85,176.84,1.41547813]
[1730062775996,2.8305,176.85,176.84,1.41546704]
[1730062778701,2.8308,176.84,176.81,2.831]
[1730062778908,9.78288066,176.84,176.82,6.2862177]
[1730062779101,9.78288066,176.84,176.83,1.41553449]
[1730062779305,2.8308,176.84,176.83,1.41553449]
[1730062779799,2.8308,176.84,176.81,2.831]
[1730062779999,2.8308,176.84,176.82,6.28555179]
[1730062780206,2.8308,176.84,176.83,1.41552138]
[1730062780404,2.8308,176.84,176.83,6.28471117]
[1730062780601,2.8303,176.87,176.84,2.8306]
[1730062780805,2.8303,176.87,176.85,1.41552138]
[1730062781112,2.8303,176.87,176.84,2.8306]
[1730062781301,2.8303,176.87,176.85,1.41539044]
[1730062781502,2.8303,176.87,176.84,2.8306]
[1730062781800,6.95208066,176.9,176.85,8.36746148]
[1730062781999,253.30391424,176.93,176.86,9.78228066]
[1730062782000,2.8299,176.89,176.86,9.78228066]
[1730062783716,2.8299,176.89,176.86,11.19760153]
[1730062784107,2.83,176.88,176.86,9.78228066]
[1730062785115,2.8297,176.9,176.87,2.83]
[1730062787015,2.8298,176.89,176.87,2.83]
[1730062789819,6.95208066,176.91,176.86,6.95208066]
[1730062790016,2.8295,176.91,176.88,6.95208066]
[1730062790516,2.8295,176.91,176.89,2.8297]
[1730062793614,6.95208066,176.95,176.89,6.95208066]
[1730062793917,6.95208066,176.95,176.9,2.8295]
[1730062794214,2.8293,176.93,176.9,2.8295]
[1730062794624,6.95208066,176.95,176.9,2.8295]
[1730062795618,1.1731,176.99,176.91,11.82223135]
[1730062795824,10.95208066,176.99,176.92,6.95208066]
[1730062796123,10.95208066,176.99,176.91,2.8294]
[1730062796124,6.95208066,176.96,176.91,2.8294]
[1730062796823,2.8292,176.93,176.91,2.8294]
[1730062799717,2.8292,176.93,176.9,9.78168066]
[1730062800825,2.8293,176.92,176.9,6.95208066]
[1730062801422,6.95208066,176.94,176.9,6.95208066]
[1730062801631,2.8292,176.93,176.9,9.78168066]
[1730062802227,2.8289,176.95,176.92,2.8292]
[1730062802425,6.95208066,176.98,176.91,6.95208066]
[1730062802628,6.95208066,177.0,176.94,6.95208066]
[1730062802931,2.8288,176.96,176.94,6.95208066]
[1730062803328,6.95208066,176.99,176.93,9.78118066]
[1730062803529,4.0,177.0,176.93,9.78118066]
[1730062803829,6.95208066,176.99,176.93,9.78118066]
[1730062804228,6.95208066,176.99,176.94,2.829]
[1730062804631,2.8288,176.96,176.93,6.95208066]
[1730062804931,2.8288,176.96,176.93,9.78118066]
[1730062805328,2.8288,176.96,176.94,2.829]
[1730062805533,2.8288,176.96,176.93,6.95208066]
[1730062806535,2.8288,176.96,176.93,9.78118066]
[1730062806833,2.8289,176.95,176.93,9.78118066]
[1730062813338,10.95208066,177.0,176.93,6.95208066]
[1730062813533,10.95208066,177.0,176.94,2.829]
[1730062814235,2.8287,176.97,176.94,2.829]
[1730062815438,10.95208066,177.0,176.93,6.95208066]
[1730062815744,10.95208066,177.0,176.95,2.8288]
[1730062816132,2.8285,176.98,176.95,2.8288]
[1730062816436,6.95208066,177.01,176.97,2.8284]
[1730062816737,10.95208066,177.03,176.97,2.8284]
[1730062817440,1.2232,177.07,176.98,6.95208066]
[1730062817441,2.828,177.01,176.98,6.95208066]
[1730062818233,2.828,177.01,176.99,2.8281]
[1730062831979,4.0,177.06,177.01,2.8278]
[1730062832175,4.0,177.06,177.02,6.95208066]
[1730062832576,2.8276,177.03,177.02,6.95208066]
[1730062837380,2.8274,177.04,177.02,9.77978066]
[1730062837976,2.8271,177.07,177.04,2.8273]
[1730062838173,6.95208066,177.1,177.05,6.95208066]
[1730062838374,6.95208066,177.07,177.01,4.0]
[1730062838582,6.95208066,177.06,177.01,10.95208066]
[1730062838779,2.8275,177.04,177.01,13.77988066]
[1730062839283,2.8275,177.04,177.01,10.95208066]
[1730062839484,2.8275,177.04,177.02,2.8277]
[1730062840593,2.76662255,177.1,176.93,3.6334]
[1730062840594,6.95208066,177.03,176.93,3.6334]
[1730062840788,2.8283,176.99,176.94,6.95208066]
[1730062841584,2.8283,176.99,176.94,10.95208066]
[1730062841790,2.8283,176.99,176.96,2.8286]
[1730062850496,2.8283,176.99,176.97,9.78058066]
[1730062851898,2.8281,177.0,176.97,6.95208066]
[1730062852602,2.8283,176.99,176.97,9.78058066]
[1730062857298,2.8283,176.99,176.97,2.8285]
[1730062868320,4.0,177.05,176.98,6.95208066]
[1730062868515,4.0,177.05,177.01,6.95208066]
[1730062868917,10.95208066,177.08,177.03,6.95208066]
[1730062869716,2.8275,177.04,177.03,6.95208066]
[1730062871224,6.95208066,177.08,177.03,6.95208066]
[1730062871421,6.95208066,177.08,176.98,4.0]
[1730062871422,2.8272,177.06,177.04,6.95208066]
[1730062872830,10.95208066,177.09,177.04,6.95208066]
[1730062873015,2.8272,177.05,177.04,6.95208066]
[1730062875627,2.8272,177.05,177.03,9.77948066]
[1730062881428,6.95208066,177.05,176.99,2.5357]
[1730062881633,6.95208066,177.05,176.99,9.48778066]
[1730062882034,2.8277,177.03,177.0,2.8279]
[1730062882737,2.8277,177.03,177.01,2.8279]
[1730062886639,2.8277,177.03,177.0,9.78008066]
[1730062893653,6.95208066,177.05,176.88,122.77095303]
[1730062893654,4.0,177.05,176.94,4.0]
[1730062893851,4.0,177.05,176.95,4.86602918]
[1730062893852,6.95208066,177.01,176.95,4.86602918]
[1730062894039,6.95208066,177.01,176.96,4.86602918]
[1730062894241,2.8284,176.98,176.95,2.8288]
[1730062894743,6.95208066,177.01,176.89,2.3971]
[1730062894948,6.95208066,176.98,176.92,6.95208066]
[1730062895139,6.95208066,176.98,176.93,4.86684418]
[1730062895339,6.95208066,176.98,176.92,6.95208066]
[1730062895340,6.95208066,176.98,176.94,4.86684418]
[1730062895540,6.95208066,176.98,176.92,9.78138066]
[1730062895541,2.8289,176.95,176.92,9.78138066]
[1730062895744,2.8289,176.95,176.93,4.86674682]
[1730062895945,2.8289,176.95,176.94,4.86674682]
[1730062896348,2.8289,176.95,176.92,9.78138066]
[1730062896542,2.8289,176.95,176.94,4.86624437]
[1730062896947,2.8289,176.95,176.92,9.78138066]
[1730062898159,2.8285,176.96,176.93,2.8289]
[1730062898654,2.8286,176.95,176.92,9.78108066]
[1730062898851,2.8286,176.95,176.93,4.86661319]
[1730062899048,2.8286,176.95,176.92,9.78108066]
[1730062899245,2.8286,176.95,176.93,4.86641069]
[1730062899450,2.8286,176.95,176.92,9.78108066]
[1730062899650,2.8286,176.95,176.93,4.86703785]
[1730062899850,2.8286,176.95,176.92,9.78108066]
[1730062900053,2.8286,176.95,176.93,4.86680008]
[1730062900456,2.8286,176.95,176.92,9.78108066]
[1730062901052,2.8286,176.95,176.93,2.8289]
[1730062902054,6.95208066,176.98,176.94,9.78078066]
[1730062902659,2.8284,176.97,176.94,9.78078066]
[1730062903159,2.8284,176.96,176.94,9.78078066]
[1730062905055,6.95208066,177.01,176.96,2.8284]
[1730062905363,4.0,177.02,176.97,6.95208066]
[1730062905660,2.8279,177.0,176.97,9.78038066]
[1730062906062,4.0,177.02,176.97,9.78038066]
[1730062906252,4.0,177.02,176.94,4.0]
[1730062906253,2.8277,177.01,176.98,9.78008066]
[1730062908455,6.95208066,177.04,176.98,6.95208066]
[1730062908658,6.95208066,177.07,177.02,6.95208066]
[1730062908958,4.0,177.07,177.02,6.95208066]
[1730062909263,4.0,177.07,177.03,6.95208066]
[1730062909963,2.8269,177.06,177.03,9.77928066]
[1730062911363,2.8267,177.07,177.05,6.95208066]
[1730062911661,4.0,177.1,177.06,6.95208066]
[1730062912356,2.8266,177.08,177.06,6.95208066]
[1730062912761,225.85396504,177.11,177.06,6.95208066]
[1730062914252,2.8266,177.08,177.06,6.95208066]
[1730062916568,2.8267,177.07,177.04,9.77908066]
[1730062916868,6.95208066,177.08,177.01,10.95208066]
[1730062917859,2.8268,177.06,177.02,2.8273]
[1730062918063,6.95208066,177.08,177.03,6.95208066]
[1730062919269,2.827,177.05,177.03,6.95208066]
[1730062919663,6.95208066,177.04,177.0,4.0]
[1730062919971,2.8275,177.02,177.0,4.0]
[1730062920269,6.95208066,177.04,176.99,6.95208066]
[1730062920673,2.8274,177.03,176.99,9.77998066]
[1730062920865,6.95208066,177.04,176.99,9.77998066]
[1730062921268,2.8276,177.02,176.99,9.77998066]